[Event "Eurasia Open Cup 2018"]
[Site "Jekaterienburg"]
[Date "2018.08.08"]
[Round "7"]
[White "Nesterov, Arseniy"]
[Black "Khanin, Semen"]
[Result "0-1"]
[ECO "D37"]
[WhiteElo "2355"]
[BlackElo "2494"]
[Annotator "ChessBase"]
[PlyCount "116"]
[EventDate "2018.08.01"]
[EventType "swiss"]
[EventCountry "RUS"]
[SourceTitle "playchess.com"]
[Source "ChessBase"]
[SourceQuality "1"]
[TimeControl "5400+30"]

1. d4 {[%emt 0:00:00]} Nf6 {[%emt 0:00:00]} 2. c4 {[%emt 0:00:00]} e6 {[%emt 0:00:00]} 3. Nf3 {[%emt 0:00:00]} a6 {[%emt 0:00:00]} 4. Nc3 {[%emt 0:00:00]} d5 {[%emt 0:00:00]} 5. cxd5 {[%emt 0:00:18]} exd5 {[%emt 0:00:00]} 6. Bg5 {[%emt 0:00:06]} Be6 {[%emt 0:00:00]} 7. e3 {[%emt 0:00:20]} Nbd7 {[%emt 0:00:00]} 8. Bd3 {[%emt 0:00:05]} Bd6 {[%emt 0:00:03]} 9. O-O {[%emt 0:01:24]} O-O {[%emt 0:00:22]} 10. Qc2 {[%emt 0:05:28]} h6 {[%emt 0:00:10]} 11. Bf4 {[%emt 0:00:27]} Qe7 {[%emt 0:00:08]} 12. Rac1 {[%emt 0:05:58]} c6 {[%emt 0:02:28]} 13. Na4 {[%emt 0:05:22]} Rfe8 {[%emt 0:11:18]} 14. Bxd6 {[%emt 0:08:30]} Qxd6 {[%emt 0:00:04]} 15. Nc5 {[%emt 0:00:06]} Nxc5 {[%emt 0:01:23]} 16. Qxc5 {[%emt 0:04:29]} Qxc5 {[%emt 0:04:17]} 17. dxc5 {[%emt 0:08:05]} a5 {[%emt 0:01:24]} 18. a4 {[%emt 0:01:16]} g6 {[%emt 0:09:48]} 19. Nd4 {[%emt 0:00:20]} Kg7 {[%emt 0:00:37]} 20. f3 {[%emt 0:00:17]} Bd7 {[%emt 0:03:53]} 21. Kf2 {[%emt 0:00:29]} Nh7 {[%emt 0:01:21]} 22. g4 {[%emt 0:05:35]} Ng5 {[%emt 0:02:10]} 23. h4 {[%emt 0:04:12]} Ne6 {[%emt 0:03:27]} 24. Rc3 {[%emt 0:02:22]} Reb8 {[%emt 0:07:30]} 25. b3 {[%emt 0:17:03]} b6 {[%emt 0:02:04]} 26. cxb6 {[%emt 0:00:19]} Rxb6 {[%emt 0:00:22]} 27. Bc2 {[%emt 0:00:49]} Kf6 {[%emt 0:05:28]} 28. Rd1 {[%emt 0:03:09]} Ke7 {[%emt 0:11:06]} 29. e4 {[%emt 0:01:04]} Nxd4 {[%emt 0:00:17]} 30. Rxd4 {[%emt 0:00:36]} Be6 {[%emt 0:00:00]} 31. f4 {[%emt 0:07:48]} dxe4 {[%emt 0:02:31]} 32. Rxe4 {[%emt 0:01:07]} Kd6 {[%emt 0:00:53]} 33. Rd4+ {[%emt 0:04:14]} Bd5 {[%emt 0:00:46]} 34. Be4 {[%emt 0:01:06]} Rd8 {[%emt 0:02:01]} 35. Rcd3 {[%emt 0:04:47]} Kc5 {[%emt 0:00:54]} 36. Ke3 {[%emt 0:00:58]} Re8 {[%emt 0:02:09]} 37. Rc3+ {[%emt 0:01:28]} Kd6 {[%emt 0:00:04]} 38. Kd3 {[%emt 0:00:49]} Rb4 {[%emt 0:02:43]} 39. Rxc6+ {[%emt 0:00:48]} Kxc6 {[%emt 0:00:04]} 40. Bxd5+ {[%emt 0:00:34]} Kc5 {[%emt 0:00:11]} 41. Rxb4 {[%emt 0:00:09]} Kxb4 {[%emt 0:02:43]} 42. Bxf7 {[%emt 0:00:00]} Rf8 {[%emt 0:00:05]} 43. Bxg6 {[%emt 0:00:10]} Rxf4 {[%emt 0:02:12]} 44. g5 {[%emt 0:01:42]} Rxh4 {[%emt 0:03:44]} 45. gxh6 {[%emt 0:00:08]} Kxb3 {[%emt 0:00:00]} 46. Be8 {[%emt 0:00:08]} Rxh6 {[%emt 0:00:17]} 47. Kd4 {[%emt 0:04:11]} Rd6+ {[%emt 0:01:28]} 48. Kc5 {[%emt 0:01:31]} Rd8 {[%emt 0:00:05]} 49. Bb5 {[%emt 0:00:17]} Kc3 {[%emt 0:02:31]} 50. Bf1 {[%emt 0:01:46]} Rf8 {[%emt 0:01:34]} 51. Bh3 {[%emt 0:01:58]} Rh8 {[%emt 0:00:25]} 52. Bd7 {[%emt 0:00:20]} Rh5+ {[%emt 0:00:04]} 53. Kd6 {[%emt 0:01:28]} Kb4 {[%emt 0:00:38]} 54. Be8 {[%emt 0:00:21]} Rh8 {[%emt 0:01:30]} 55. Bb5 {[%emt 0:00:24]} Rb8 {[%emt 0:00:11]} 56. Kc6 {[%emt 0:00:16]} Rd8 {[%emt 0:00:00]} 57. Kc7 {[%emt 0:00:20]} Rd5 {[%emt 0:00:38]} 58. Be8 {[%emt 0:01:04]} Re5 {[%emt 0:00:06]} 0-1

[Event "Eurasia Open Cup 2018"]
[Site "Jekaterienburg"]
[Date "2018.08.08"]
[Round "7"]
[White "Obgolts, Erik"]
[Black "Shaposhnikov, Evgeny"]
[Result "0-1"]
[ECO "C00"]
[WhiteElo "2334"]
[BlackElo "2588"]
[Annotator "ChessBase"]
[PlyCount "162"]
[EventDate "2018.08.01"]
[EventType "swiss"]
[EventCountry "RUS"]
[SourceTitle "playchess.com"]
[Source "ChessBase"]
[SourceQuality "1"]
[TimeControl "5400+30"]

1. e4 {[%emt 0:00:00]} c5 {[%emt 0:00:00]} 2. Nf3 {[%emt 0:00:00]} e6 {[%emt 0:00:00]} 3. g3 {[%emt 0:00:00]} Nf6 {[%emt 0:00:51]} 4. Qe2 {[%emt 0:00:51]} Nc6 {[%emt 0:00:44]} 5. Bg2 {[%emt 0:00:26]} g6 {[%emt 0:00:23]} 6. O-O {[%emt 0:00:48]} Bg7 {[%emt 0:00:11]} 7. c3 {[%emt 0:02:16]} e5 {[%emt 0:05:07]} 8. d3 {[%emt 0:10:30]} O-O {[%emt 0:00:43]} 9. Be3 {[%emt 0:03:08]} b6 {[%emt 0:02:17]} 10. c4 {[%emt 0:05:42]} d6 {[%emt 0:02:04]} 11. Nc3 {[%emt 0:00:04]} h6 {[%emt 0:01:05]} 12. h3 {[%emt 0:06:32]} Bd7 {[%emt 0:01:53]} 13. Qd2 {[%emt 0:02:56]} Kh7 {[%emt 0:00:22]} 14. a3 {[%emt 0:01:32]} Nh5 {[%emt 0:06:21]} 15. Qd1 {[%emt 0:11:41]} Be8 {[%emt 0:03:06]} 16. Nd5 {[%emt 0:01:34]} Ne7 {[%emt 0:02:36]} 17. Nxe7 {[%emt 0:02:38]} Qxe7 {[%emt 0:01:06]} 18. Bd2 {[%emt 0:02:06]} Rd8 {[%emt 0:05:44]} 19. Ne1 {[%emt 0:04:54]} f5 {[%emt 0:01:05]} 20. Nc2 {[%emt 0:00:41]} f4 {[%emt 0:04:27]} 21. g4 {[%emt 0:03:51]} Nf6 {[%emt 0:05:48]} 22. a4 {[%emt 0:01:08]} Kg8 {[%emt 0:06:54]} 23. b4 {[%emt 0:05:58]} Nh7 {[%emt 0:01:39]} 24. b5 {[%emt 0:04:14]} Qh4 {[%emt 0:02:23]} 25. f3 {[%emt 0:01:14]} Qe7 {[%emt 0:03:33]} 26. Be1 {[%emt 0:01:49]} Bf6 {[%emt 0:00:32]} 27. Na3 {[%emt 0:00:51]} h5 {[%emt 0:01:40]} 28. Nb1 {[%emt 0:01:39]} Kg7 {[%emt 0:03:57]} 29. Nc3 {[%emt 0:00:36]} Bf7 {[%emt 0:01:02]} 30. Kf2 {[%emt 0:01:22]} hxg4 {[%emt 0:06:18]} 31. hxg4 {[%emt 0:00:09]} Rh8 {[%emt 0:01:51]} 32. Rh1 {[%emt 0:02:31]} Ng5 {[%emt 0:00:43]} 33. Rxh8 {[%emt 0:02:35]} Rxh8 {[%emt 0:00:18]} 34. Kf1 {[%emt 0:00:56]} Qd8 {[%emt 0:04:40]} 35. a5 {[%emt 0:04:11]} Rh2 {[%emt 0:01:20]} 36. Ne2 {[%emt 0:01:13]} Qh8 {[%emt 0:05:36]} 37. Ng1 {[%emt 0:00:13]} Bd8 {[%emt 0:01:35]} 38. axb6 {[%emt 0:01:31]} Bxb6 {[%emt 0:01:13]} 39. Bf2 {[%emt 0:01:15]} Be6 {[%emt 0:01:06]} 40. Ra2 {[%emt 0:00:30]} Qh7 {[%emt 0:01:42]} 41. Ra1 {[%emt 0:01:44]} Bd7 {[%emt 0:01:47]} 42. Ra2 {[%emt 0:01:25]} Ne6 {[%emt 0:00:47]} 43. Ne2 {[%emt 0:00:47]} Ng5 {[%emt 0:01:43]} 44. Ng1 {[%emt 0:00:07]} Qh8 {[%emt 0:01:42]} 45. Ra1 {[%emt 0:00:23]} Qc8 {[%emt 0:00:34]} 46. Ra2 {[%emt 0:00:55]} Nf7 {[%emt 0:01:05]} 47. Ra1 {[%emt 0:01:19]} Nh6 {[%emt 0:00:29]} 48. Ra2 {[%emt 0:00:41]} Ng8 {[%emt 0:02:20]} 49. Ra1 {[%emt 0:00:00]} Nf6 {[%emt 0:00:58]} 50. Ra2 {[%emt 0:00:03]} g5 {[%emt 0:00:39]} 51. Ra6 {[%emt 0:03:54]} Kg6 {[%emt 0:00:57]} 52. Ra2 {[%emt 0:02:05]} Be6 {[%emt 0:00:07]} 53. Ra1 {[%emt 0:00:50]} Nxg4 {[%emt 0:01:39]} 54. fxg4 {[%emt 0:00:02]} Bxg4 {[%emt 0:00:04]} 55. Qa4 {[%emt 0:02:24]} Qh8 {[%emt 0:02:19]} 56. Ra2 {[%emt 0:01:23]} Qh5 {[%emt 0:01:11]} 57. Qa6 {[%emt 0:01:10]} f3 {[%emt 0:02:00]} 58. Bxf3 {[%emt 0:00:13]} Bxf3 {[%emt 0:00:07]} 59. Qc8 {[%emt 0:00:24]} Bg4 {[%emt 0:01:03]} 60. Qg8+ {[%emt 0:00:33]} Kf6 {[%emt 0:00:14]} 61. Qf8+ {[%emt 0:00:14]} Ke6 {[%emt 0:00:33]} 62. Qg8+ {[%emt 0:00:22]} Kd7 {[%emt 0:00:34]} 63. Qg7+ {[%emt 0:00:18]} Kc8 {[%emt 0:00:30]} 64. Rxa7 {[%emt 0:01:37]} Bxa7 {[%emt 0:01:27]} 65. Qxa7 {[%emt 0:00:03]} Be6 {[%emt 0:01:22]} 66. Ke1 {[%emt 0:01:47]} Qf7 {[%emt 0:00:06]} 67. Qxf7 {[%emt 0:01:41]} Bxf7 {[%emt 0:00:02]} 68. Ne2 {[%emt 0:00:21]} Bh5 {[%emt 0:00:30]} 69. Ng3 {[%emt 0:00:14]} Bg4 {[%emt 0:00:08]} 70. Kf1 {[%emt 0:00:30]} Bh3+ {[%emt 0:00:33]} 71. Ke2 {[%emt 0:00:20]} Kd7 {[%emt 0:00:09]} 72. Kf3 {[%emt 0:01:02]} Be6 {[%emt 0:00:20]} 73. Ke2 {[%emt 0:00:17]} g4 {[%emt 0:00:30]} 74. Ke3 {[%emt 0:00:15]} Rh8 {[%emt 0:00:14]} 75. Be1 {[%emt 0:00:16]} Rf8 {[%emt 0:00:06]} 76. Ke2 {[%emt 0:00:21]} Ke7 {[%emt 0:00:16]} 77. Bd2 {[%emt 0:00:27]} Ra8 {[%emt 0:00:16]} 78. Bg5+ {[%emt 0:00:13]} Kf7 {[%emt 0:00:05]} 79. Ke3 {[%emt 0:00:53]} Ra3 {[%emt 0:00:08]} 80. Ke2 {[%emt 0:00:10]} Bxc4 {[%emt 0:00:13]} 81. Nf5 {[%emt 0:00:22]} Bxd3+ {[%emt 0:00:30]} 0-1

[Event "Eurasia Open Cup 2018"]
[Site "Jekaterienburg"]
[Date "2018.08.08"]
[Round "7"]
[White "Gusarov, Aleksey"]
[Black "Yeletsky, Ivan"]
[Result "1/2-1/2"]
[ECO "A21"]
[WhiteElo "2238"]
[BlackElo "2412"]
[Annotator "NA"]
[PlyCount "167"]
[EventDate "2018.08.01"]
[EventType "swiss"]
[EventCountry "RUS"]
[SourceTitle "playchess.com"]
[Source "ChessBase"]
[SourceQuality "1"]
[TimeControl "5400+30"]

1. c4 {[%emt 0:00:01]} e5 {[%emt 0:00:57]} 2. Nc3 {[%emt 0:00:21]} Bb4 {[%emt 0:00:07]} 3. g3 {[%emt 0:01:32]} Bxc3 {[%emt 0:00:17]} 4. bxc3 {[%emt 0:00:06]} Ne7 {[%emt 0:00:40]} 5. Bg2 {[%emt 0:00:38]} O-O {[%emt 0:00:09]} 6. Nh3 {[%emt 0:01:51]} h6 {[%emt 0:10:03]} 7. O-O {[%emt 0:00:34]} d5 {[%emt 0:00:09]} 8. cxd5 {[%emt 0:02:52]} Nxd5 {[%emt 0:00:08]} 9. c4 {[%emt 0:05:10]} Nb6 {[%emt 0:03:33]} 10. d3 {[%emt 0:00:37]} Be6 {[%emt 0:01:18]} 11. Kh1 {[%emt 0:00:53]} Qd7 {[%emt 0:02:16]} 12. Ng1 {[%emt 0:00:17]} Nc6 {[%emt 0:00:09]} 13. Bb2 {[%emt 0:04:47]} Rad8 {[%emt 0:01:37]} 14. Rc1 {[%emt 0:00:53]} Rfe8 {[%emt 0:01:07]} 15. Qc2 {[%emt 0:09:02]} f6 {[%emt 0:20:41]} 16. h3 $11 {[%emt 0:07:34]} Ne7 {[%emt 0:11:02]} 17. Kh2 {[%emt 0:01:21]} Qa4 {[%emt 0:05:43]} 18. Bxb7 {[%emt 0:11:12]} c6 {[%emt 0:01:28]} 19. Qxa4 {[%emt 0:00:45]} Nxa4 {[%emt 0:00:07]} 20. Ba3 {[%emt 0:00:04]} Rb8 {[%emt 0:07:02]} 21. Rb1 {[%emt 0:01:45]} Nc3 {[%emt 0:00:47]} 22. Rb3 {[%emt 0:06:58]} Nb5 {[%emt 0:05:19]} 23. Bxe7 {[%emt 0:01:25]} Nd4 {[%emt 0:00:52]} 24. Bxc6 {[%emt 0:11:18]} Nxc6 {[%emt 0:00:11]} 25. Bc5 {[%emt 0:00:14]} Rxb3 {[%emt 0:03:17]} 26. axb3 {[%emt 0:00:04]} Rb8 {[%emt 0:00:05]} 27. b4 {[%emt 0:01:16]} Nxb4 {[%emt 0:00:58]} 28. Bxa7 {[%emt 0:00:34]} Ra8 {[%emt 0:01:18]} 29. Bc5 {[%emt 0:02:23]} Nc2 {[%emt 0:02:38]} 30. Rb1 {[%emt 0:00:47]} Ra2 {[%emt 0:00:23]} 31. Rb6 {[%emt 0:02:44]} Kf7 {[%emt 0:04:13]} 32. Rb7+ {[%emt 0:00:06]} Kg8 {[%emt 0:00:05]} 33. Re7 {[%emt 0:02:13]} Bf7 {[%emt 0:02:20]} 34. g4 {[%emt 0:01:05]} Ra1 {[%emt 0:02:48]} 35. Nf3 {[%emt 0:03:59]} Ne1 {[%emt 0:00:25]} 36. Ng1 {[%emt 0:01:49]} Bg6 {[%emt 0:00:56]} 37. Ra7 {[%emt 0:00:51]} Rd1 {[%emt 0:07:24]} 38. f3 {[%emt 0:04:02]} Nc2 {[%emt 0:03:16]} 39. Ra2 {[%emt 0:00:26]} Rc1 {[%emt 0:00:40]} 40. Ba3 {[%emt 0:00:52]} Nxa3 {[%emt 0:00:24]} 41. Rxa3 {[%emt 0:00:04]} h5 {[%emt 0:00:05]} 42. gxh5 {[%emt 0:01:46]} Bxh5 {[%emt 0:00:04]} 43. h4 {[%emt 0:00:09]} Rc2 {[%emt 0:00:57]} 44. Kg3 {[%emt 0:00:53]} Kh7 {[%emt 0:00:07]} 45. Kf2 {[%emt 0:00:13]} Rc1 {[%emt 0:00:55]} 46. Ra2 {[%emt 0:00:35]} Be8 {[%emt 0:00:35]} 47. Kg2 {[%emt 0:00:47]} Bc6 {[%emt 0:01:13]} 48. Ra6 {[%emt 0:04:37]} Bd7 {[%emt 0:00:03]} 49. Rd6 {[%emt 0:01:48]} Ba4 {[%emt 0:00:27]} 50. Kf2 {[%emt 0:00:29]} Kg6 {[%emt 0:00:05]} 51. Rd8 {[%emt 0:01:33]} Kh7 {[%emt 0:00:46]} 52. f4 {[%emt 0:02:24]} e4 {[%emt 0:01:46]} 53. dxe4 {[%emt 0:00:36]} Rxc4 {[%emt 0:00:04]} 54. Ke3 {[%emt 0:00:05]} Bc6 {[%emt 0:00:43]} 55. Rd4 {[%emt 0:00:07]} Rc3+ {[%emt 0:00:39]} 56. Kf2 {[%emt 0:00:18]} Kg6 {[%emt 0:00:07]} 57. Nf3 {[%emt 0:00:13]} Kh5 {[%emt 0:00:29]} 58. e5 {[%emt 0:04:08]} Kg4 {[%emt 0:00:06]} 59. Ne1 {[%emt 0:01:33]} Kxh4 {[%emt 0:01:40]} 60. exf6 {[%emt 0:00:09]} gxf6 {[%emt 0:00:05]} 61. Rd6 {[%emt 0:00:04]} f5 {[%emt 0:00:31]} 62. Nd3 {[%emt 0:00:17]} Be4 {[%emt 0:00:45]} 63. Ne5 {[%emt 0:00:58]} Kh5 {[%emt 0:00:08]} 64. Rb6 {[%emt 0:01:20]} Ra3 {[%emt 0:00:33]} 65. Nc4 {[%emt 0:00:38]} Rh3 {[%emt 0:00:28]} 66. Ne5 {[%emt 0:00:32]} Ra3 {[%emt 0:00:15]} 67. Rb8 {[%emt 0:00:37]} Kh6 {[%emt 0:00:11]} 68. Rg8 {[%emt 0:00:07]} Kh7 {[%emt 0:00:56]} 69. Rg1 {[%emt 0:00:10]} Ra7 {[%emt 0:00:28]} 70. Rg3 {[%emt 0:00:45]} Rb7 {[%emt 0:00:14]} 71. Rg5 {[%emt 0:00:51]} Kh6 {[%emt 0:00:41]} 72. Nc4 {[%emt 0:00:20]} Rg7 {[%emt 0:00:38]} 73. Rxg7 {[%emt 0:00:19]} Kxg7 {[%emt 0:00:05]} 74. Ke3 {[%emt 0:00:12]} Kf6 {[%emt 0:00:07]} 75. Kd4 {[%emt 0:00:05]} Bg2 {[%emt 0:00:16]} 76. Ne5 {[%emt 0:00:35]} Ke6 {[%emt 0:00:16]} 77. Kc5 {[%emt 0:00:19]} Bf1 {[%emt 0:00:10]} 78. e3 {[%emt 0:00:07]} Bg2 {[%emt 0:00:05]} 79. Nc6 {[%emt 0:00:12]} Be4 {[%emt 0:00:13]} 80. Nd4+ {[%emt 0:01:41]} Ke7 {[%emt 0:00:07]} 81. Nb5 {[%emt 0:00:19]} Ke6 {[%emt 0:00:26]} 82. Kb6 {[%emt 0:00:28]} Bd3 {[%emt 0:00:55]} 83. Nc3 {[%emt 0:00:39]} Kd6 {[%emt 0:00:07]} 84. Nd1 {[%emt 0:01:06]} 1/2-1/2

[Event "Eurasia Open Cup 2018"]
[Site "Jekaterienburg"]
[Date "2018.08.08"]
[Round "7"]
[White "Marchuk, Rostislav"]
[Black "Popov, Mikhail"]
[Result "0-1"]
[ECO "E61"]
[WhiteElo "2155"]
[BlackElo "2401"]
[Annotator "NA"]
[PlyCount "93"]
[EventDate "2018.08.01"]
[EventType "swiss"]
[EventCountry "RUS"]
[SourceTitle "playchess.com"]
[Source "ChessBase"]
[SourceQuality "1"]
[TimeControl "5400+30"]

1. d4 {[%emt 0:00:00]} g6 {[%emt 0:00:20]} 2. Nf3 {[%emt 0:00:00]} d6 {[%emt 0:00:24]} 3. c4 {[%emt 0:00:18]} Nf6 {[%emt 0:00:00]} 4. Nc3 {[%emt 0:00:05]} Bf5 {[%emt 0:00:24]} 5. d5 {[%emt 0:09:27]} Bg7 {[%emt 0:00:26]} 6. Nd4 {[%emt 0:00:26]} Bd7 {[%emt 0:00:28]} 7. e4 {[%emt 0:00:39]} O-O {[%emt 0:00:30]} 8. Be2 {[%emt 0:00:43]} e6 {[%emt 0:01:09]} 9. O-O {[%emt 0:02:41]} exd5 {[%emt 0:00:58]} 10. exd5 {[%emt 0:02:07]} Re8 {[%emt 0:01:22]} 11. Bf3 {[%emt 0:03:46]} a5 {[%emt 0:02:21]} 12. h3 {[%emt 0:09:26]} Na6 {[%emt 0:00:39]} 13. Be3 {[%emt 0:06:56]} Nc5 {[%emt 0:06:57]} 14. Re1 {[%emt 0:10:48]} Nfe4 {[%emt 0:07:07]} 15. Qc2 $11 {[%emt 0:08:06]} Nxc3 {[%emt 0:21:58]} 16. Qxc3 {[%emt 0:07:16]} Qh4 {[%emt 0:00:37]} 17. Qd2 {[%emt 0:06:37]} Ne4 {[%emt 0:07:04]} 18. Bxe4 {[%emt 0:04:20]} Rxe4 {[%emt 0:01:31]} 19. Nf3 {[%emt 0:00:16]} Qh5 {[%emt 0:04:14]} 20. Bd4 {[%emt 0:04:06]} Rxe1+ {[%emt 0:03:35]} 21. Rxe1 {[%emt 0:00:37]} Bxh3 {[%emt 0:01:43]} 22. Bxg7 {[%emt 0:00:00]} Qg4 {[%emt 0:03:28]} 23. Qg5 {[%emt 0:00:56]} Kxg7 {[%emt 0:00:27]} 24. Re7 {[%emt 0:00:35]} Rc8 {[%emt 0:01:47]} 25. Kh2 {[%emt 0:02:11]} h6 {[%emt 0:01:43]} 26. Qxg4 {[%emt 0:00:23]} Bxg4 {[%emt 0:00:04]} 27. Nd4 {[%emt 0:00:21]} Kf6 {[%emt 0:01:45]} 28. Re3 {[%emt 0:00:12]} Bd7 {[%emt 0:01:16]} 29. Kg3 {[%emt 0:05:08]} Re8 {[%emt 0:06:10]} 30. Rxe8 {[%emt 0:00:12]} Bxe8 {[%emt 0:00:04]} 31. f4 {[%emt 0:00:46]} Bd7 {[%emt 0:03:03]} 32. Kf3 {[%emt 0:01:56]} h5 {[%emt 0:01:32]} 33. g3 {[%emt 0:01:53]} g5 {[%emt 0:05:04]} 34. Ke3 {[%emt 0:01:54]} Kg6 {[%emt 0:02:23]} 35. Ke4 {[%emt 0:01:48]} h4 {[%emt 0:01:23]} 36. fxg5 {[%emt 0:02:44]} h3 {[%emt 0:01:04]} 37. Nf3 {[%emt 0:03:11]} Bg4 {[%emt 0:00:38]} 38. Nh2 {[%emt 0:00:53]} Kxg5 {[%emt 0:00:06]} 39. Kd4 {[%emt 0:02:55]} b6 {[%emt 0:01:56]} 40. b3 {[%emt 0:00:00]} Bd1 {[%emt 0:01:57]} 41. Ke3 {[%emt 0:01:14]} Bc2 {[%emt 0:02:16]} 42. Kd2 {[%emt 0:00:26]} Bb1 {[%emt 0:00:53]} 43. Kc1 {[%emt 0:00:00]} Be4 {[%emt 0:02:47]} 44. Kd2 {[%emt 0:00:03]} f5 {[%emt 0:00:46]} 45. Ke3 {[%emt 0:03:37]} Bb1 {[%emt 0:00:05]} 46. a3 {[%emt 0:00:31]} Ba2 {[%emt 0:00:32]} 47. Kd4 {[%emt 0:00:04]} 0-1

[Event "Eurasia Open Cup 2018"]
[Site "Jekaterienburg"]
[Date "2018.08.08"]
[Round "7"]
[White "Isanzhulov, Arystan"]
[Black "Kopylov, Alexander A"]
[Result "1/2-1/2"]
[ECO "C47"]
[WhiteElo "2146"]
[BlackElo "2421"]
[Annotator "NA"]
[PlyCount "101"]
[EventDate "2018.08.01"]
[EventType "swiss"]
[EventCountry "RUS"]
[SourceTitle "playchess.com"]
[Source "ChessBase"]
[SourceQuality "1"]
[TimeControl "5400+30"]

1. e4 {[%emt 0:00:00]} e5 {[%emt 0:04:36]} 2. Nf3 {[%emt 0:00:00]} Nc6 {[%emt 0:01:22]} 3. d4 {[%emt 0:00:04]} exd4 {[%emt 0:00:57]} 4. Nxd4 {[%emt 0:00:04]} Nf6 {[%emt 0:01:29]} 5. Nxc6 {[%emt 0:00:32]} bxc6 {[%emt 0:00:00]} 6. Nc3 {[%emt 0:00:19]} Bb4 {[%emt 0:01:33]} 7. Bd3 {[%emt 0:00:00]} d5 {[%emt 0:00:29]} 8. exd5 {[%emt 0:00:42]} O-O {[%emt 0:00:09]} 9. O-O {[%emt 0:00:18]} cxd5 {[%emt 0:00:06]} 10. h3 {[%emt 0:00:20] C47: Scotch Four Knights and Four Knights with 4 g3} (10. Bg5 c6 11. Qf3 Bd6 12. Rae1 Rb8 13. Nd1 h6 14. Bxf6 Qxf6 15. Qxf6 gxf6 16. b3 Be6 17. Ne3 Bb4 18. Rd1 Rfe8 19. Nf5 Bxf5 20. Bxf5 Re5 21. f4 {½-½ (30) Wei,Y (2734)-Yu,Y (2759) Hangzhou 2018}) 10... c6 {[%emt 0:03:24]} 11. Qf3 {[%emt 0:12:32]} Rb8 {[%emt 0:03:04]} 12. Bf4 {[%emt 0:00:00]} Bd6 {[%emt 0:00:13]} 13. b3 {[%emt 0:00:00]} Qc7 {[%emt 0:06:55]} 14. Ne2 {[%emt 0:00:00]} Re8 {[%emt 0:01:08]} 15. Rfe1 {[%emt 0:06:51]} Bd7 {[%emt 0:03:27]} 16. Qg3 {[%emt 0:00:58]} Be5 $146 {[%emt 0:08:34]} ({Predecessor:} 16... Bxf4 17. Qxf4 Qa5 {1-0 (70) Serefidou,D (1971)-Coimbra,M (2093) Belgrade 2013}) 17. Bxe5 {[%emt 0:06:31]} Rxe5 {[%emt 0:01:09]} 18. Nd4 {[%emt 0:04:10]} Rxe1+ {[%emt 0:00:49]} 19. Rxe1 {[%emt 0:00:06]} Qxg3 {[%emt 0:00:00]} 20. fxg3 {[%emt 0:00:05]} c5 $11 {[%emt 0:15:58]} 21. Nf3 {[%emt 0:01:13]} a5 {[%emt 0:00:48]} 22. g4 {[%emt 0:07:31]} h6 {[%emt 0:05:11]} 23. g5 {[%emt 0:02:20]} hxg5 {[%emt 0:01:34]} 24. Nxg5 {[%emt 0:00:01]} Kf8 {[%emt 0:01:09]} 25. Nf3 {[%emt 0:02:31]} a4 {[%emt 0:04:45]} 26. Nd2 {[%emt 0:07:20]} Be6 {[%emt 0:02:10]} 27. c4 {[%emt 0:14:52]} dxc4 {[%emt 0:22:22]} 28. Bxc4 {[%emt 0:01:59]} Bxc4 {[%emt 0:01:48]} 29. Nxc4 {[%emt 0:00:06]} axb3 {[%emt 0:00:39]} 30. Rb1 {[%emt 0:00:19]} Nd5 {[%emt 0:02:58]} 31. Rxb3 {[%emt 0:02:07]} Rxb3 {[%emt 0:00:22]} 32. axb3 {[%emt 0:00:34]} Ke7 {[%emt 0:01:24]} 33. Kf2 {[%emt 0:01:12]} Ke6 {[%emt 0:00:00]} 34. Kf3 {[%emt 0:00:28]} Ne7 {[%emt 0:02:18]} 35. g4 {[%emt 0:03:10]} g5 {[%emt 0:02:48]} 36. Nd2 {[%emt 0:01:37]} Nc6 {[%emt 0:00:00]} 37. Ke4 {[%emt 0:00:24]} f6 {[%emt 0:01:05]} 38. Nc4 {[%emt 0:02:16]} Ne5 {[%emt 0:00:34]} 39. Ne3 {[%emt 0:00:19]} Nc6 {[%emt 0:00:49]} 40. Nf5 {[%emt 0:00:38]} Na5 {[%emt 0:00:00]} 41. h4 {[%emt 0:05:56]} gxh4 {[%emt 0:00:19]} 42. Nxh4 {[%emt 0:00:06]} Nxb3 {[%emt 0:00:03]} 43. Nf5 {[%emt 0:02:39]} Na5 {[%emt 0:01:16]} 44. Ng7+ {[%emt 0:01:47]} Kf7 {[%emt 0:00:09]} 45. Nh5 {[%emt 0:01:16]} Kg6 {[%emt 0:00:13]} 46. Nf4+ {[%emt 0:00:30]} Kg5 {[%emt 0:00:21]} 47. Ne6+ {[%emt 0:00:07]} Kxg4 {[%emt 0:00:03]} 48. Nxc5 {[%emt 0:00:04]} f5+ {[%emt 0:00:13]} 49. Ke3 {[%emt 0:00:04]} Kg3 {[%emt 0:00:05]} 50. Ne4+ {[%emt 0:00:12]} fxe4 {[%emt 0:00:12]} 51. Kxe4 {[%emt 0:00:04]} 1/2-1/2